lending/lending_fUSD_20240621
["ID","MTS","AMOUNT","RATE_DAILY","PERIOD"]
[330086778,1718989880986,-500.0,0.00024109,4]
[330086779,1718989880996,-500.0,0.00024109,4]
[330086780,1718989881006,-500.0,0.00024109,4]
[330086781,1718989881015,-500.0,0.00024109,4]
[330086782,1718989881025,-768.74,0.00024109,4]
[330086783,1718989881036,-1467.03,0.00024109,4]
[330086784,1718989881046,-500.0,0.00024109,4]
[330086785,1718989881056,-1066.65,0.00024109,4]
[330086786,1718989881066,-735.92,0.00024109,4]
[330086787,1718989881075,-500.0,0.00024109,4]
[330086788,1718989881086,-500.0,0.00024109,4]
[330086789,1718989881098,-899.57,0.00024109,4]
[330086790,1718989881110,-1342.26,0.00024109,4]
[330086791,1718989881121,-500.0,0.00024109,4]
[330086792,1718989881131,-500.0,0.00024109,4]
[330086793,1718989881143,-585.36,0.00024109,4]
[330086794,1718989881153,-509.69,0.00024109,4]
[330086795,1718989881163,-667.28,0.00024109,4]
[330086796,1718989881173,-500.0,0.00024109,4]
[330086797,1718989881183,-2179.3,0.00024109,4]
[330086798,1718989881194,-858.28,0.00024109,4]
[330086799,1718989881204,-906.35,0.00024109,4]
[330086800,1718989881213,-500.0,0.00024109,4]
[330086801,1718989881223,-401.21584396,0.00024109,4]
[330086802,1718989881233,-559.84,0.00024109,4]
[330086803,1718989881243,-500.0,0.00024109,4]
[330086804,1718989881253,-1415.8,0.00024109,4]
[330086805,1718989881263,-587.39,0.00024109,4]
[330086806,1718989881273,-1930.31,0.00024109,4]
[330086807,1718989881284,-1505.14,0.00024109,4]
[330086808,1718989881294,-859.86,0.00024109,4]
[330086809,1718989881304,-500.0,0.00024109,4]
[330086810,1718989881313,-642.24,0.00024109,4]
[330086811,1718989881322,-1397.1,0.00024109,4]
[330086812,1718989881332,-602.59,0.00024109,4]
[330086813,1718989881341,-570.91,0.00024109,4]
[330086814,1718989881350,-669.19,0.00024109,4]
[330086815,1718989881361,-500.0,0.00024109,4]
[330086816,1718989881371,-1901.91,0.00024109,4]
[330086817,1718989881380,-1273.57,0.00024109,4]
[330086818,1718989881390,-500.0,0.00024109,4]
[330086819,1718989881399,-500.0,0.00024109,4]
[330086820,1718989881410,-963.28,0.00024109,4]
[330086821,1718989881423,-532.82,0.00024109,4]
[330086822,1718989881436,-500.0,0.00024109,4]
[330086823,1718989881446,-2148.29,0.00024109,4]
[330086824,1718989881459,-904.13,0.00024109,4]
[330086825,1718989881468,-500.0,0.00024109,4]
[330086826,1718989881477,-500.0,0.00024109,4]
[330086827,1718989881487,-1923.19,0.00024109,4]
[330086828,1718989881496,-1655.82,0.00024109,4]
[330086829,1718989881506,-500.0,0.00024109,4]
[330086830,1718989881515,-590.93,0.00024109,4]
[330086831,1718989881525,-511.56,0.00024109,4]
[330086832,1718989881534,-1612.01,0.00024109,4]
[330086833,1718989881543,-500.0,0.00024109,4]
[330086834,1718989881553,-2137.42,0.00024109,4]
[330086835,1718989881563,-573.05,0.00024109,4]
[330086836,1718989881573,-3053.94,0.00024109,4]
[330086837,1718989881583,-500.0,0.00024109,4]
[330086838,1718989881592,-500.0,0.00024109,4]
[330086839,1718989881601,-500.0,0.00024109,4]
[330086840,1718989881612,-639.37,0.00024109,4]
[330086841,1718989881622,-2243.82,0.00024109,4]
[330086842,1718989881632,-682.46,0.00024109,4]
[330086843,1718989881642,-1600.73,0.00024109,4]
[330086844,1718989881652,-500.0,0.00024109,4]
[330086845,1718989881671,-151.0,0.00024109,7]
[330086846,1718989881679,-696.06,0.00024109,4]
[330086847,1718989881690,-500.0,0.00024109,4]
[330086848,1718989881699,-1542.7,0.00024109,4]
[330086849,1718989881708,-1105.98,0.00024109,4]
[330086850,1718989881718,-1549.93,0.00024109,4]
[330086851,1718989881727,-833.57,0.00024109,4]
[330086852,1718989881736,-2659.75,0.00024109,4]
[330086853,1718989881745,-500.0,0.00024109,4]
[330086854,1718989881754,-500.0,0.00024109,4]
[330086855,1718989881764,-1158.3,0.00024109,4]
[330086856,1718989881773,-500.0,0.00024109,4]
[330086857,1718989881783,-833.78,0.00024109,4]
[330086858,1718989881792,-533.64,0.00024109,4]
[330086859,1718989881801,-685.86,0.00024109,4]
[330086860,1718989881811,-1289.2,0.00024109,4]
[330086861,1718989881821,-500.0,0.00024109,4]
[330086862,1718989881831,-1090.97,0.00024109,4]
[330086863,1718989881841,-599.47,0.00024109,4]
[330086864,1718989881851,-2819.08,0.00024109,4]
[330086865,1718989881860,-7009.44,0.00024109,4]
[330086866,1718989881870,-591.52,0.00024109,4]
[330086867,1718989881880,-1505.93,0.00024109,4]
[330086868,1718989881891,-824.93,0.00024109,4]
[330086869,1718989881900,-500.0,0.00024109,4]
[330086870,1718989881912,-3331.02,0.00024109,4]
[330086871,1718989881922,-1405.37,0.00024109,4]
[330086872,1718989881931,-5922.66,0.00024109,4]
[330086873,1718989881940,-500.0,0.00024109,4]
[330086874,1718989881951,-905.75,0.00024109,4]
[330086875,1718989881960,-6608.91,0.00024109,4]
[330086876,1718989881969,-500.0,0.00024109,4]
[330086877,1718989881979,-580.05,0.00024109,4]
[330086878,1718989881988,-500.0,0.00024109,4]
[330086879,1718989881998,-540.71,0.00024109,4]
[330086880,1718989882008,-838.13,0.00024109,4]
[330086881,1718989882019,-500.0,0.00024109,4]
[330086882,1718989882029,-535.25,0.00024109,4]
[330086883,1718989882038,-823.35,0.00024109,4]
[330086884,1718989882048,-887.04,0.00024109,4]
[330086885,1718989882058,-1378.35,0.00024109,4]
[330086886,1718989882068,-500.0,0.00024109,4]
[330086887,1718989882078,-500.0,0.00024109,4]
[330086888,1718989882090,-1812.66,0.00024109,4]
[330086889,1718989882105,-1256.45,0.00024109,4]
[330086890,1718989882115,-647.36,0.00024109,4]
[330086891,1718989882125,-772.11,0.00024109,4]
[330086892,1718989882135,-500.0,0.00024109,4]
[330086893,1718989882145,-280.62,0.00024109,4]
[330086894,1718989882158,-939.73,0.00024109,4]
[330086895,1718989882167,-192.53,0.00024109,4]
[330086896,1718989882178,-1304.96,0.00024109,4]
[330086897,1718989882189,-500.0,0.00024109,4]
[330086898,1718989882199,-1184.79,0.00024109,4]
[330086899,1718989882208,-458.7,0.00024109,4]
[330086900,1718989882218,-1482.67,0.00024109,4]
[330086901,1718989882227,-1172.14,0.00024109,4]
[330086902,1718989882236,-500.0,0.00024109,4]
[330086903,1718989882246,-500.0,0.00024109,4]
[330086904,1718989882255,-500.0,0.00024109,4]
[330086905,1718989882264,-1060.14,0.00024109,4]
[330086906,1718989882274,-3886.53,0.00024109,4]
[330086907,1718989882284,-654.99,0.00024109,4]
[330086908,1718989882294,-1021.14,0.00024109,4]
[330086909,1718989882303,-500.0,0.00024109,4]
[330086910,1718989882313,-25963.77,0.00024109,4]
[330086911,1718989882322,-151.0,0.00024109,7]
[330086912,1718989882332,-1656.59,0.00024109,4]
[330086913,1718989882342,-1438.15,0.00024109,4]
[330086914,1718989882351,-500.0,0.00024109,4]
[330086915,1718989882361,-1558.07,0.00024109,4]
[330086916,1718989882371,-500.0,0.00024109,4]
[330086917,1718989882380,-1206.43,0.00024109,4]
[330086918,1718989882390,-1774.24,0.00024109,4]
[330086919,1718989882399,-1123.84,0.00024109,4]
[330086920,1718989882412,-1807.53,0.00024109,4]
[330086921,1718989882422,-1718.78,0.00024109,4]
[330086922,1718989882431,-500.0,0.00024109,4]
[330086923,1718989882440,-623.07,0.00024109,4]
[330086924,1718989882450,-500.0,0.00024109,4]
[330086925,1718989882460,-736.5,0.00024109,4]
[330086926,1718989882469,-500.0,0.00024109,7]
[330086927,1718989882479,-172.0,0.00024164,2]
[330086928,1718989882488,-5000.0,0.00024197,2]
[330086930,1718989882799,-396.70010063,0.0002421,2]
[330086931,1718989882811,-166.66666666,0.00024226,2]
[330086932,1718989882821,-1060.98863015,0.0002425,2]
[330086933,1718989882830,-166.66666666,0.00024263,2]
[330086934,1718989882840,-6421.9,0.00024273,7]
[330086935,1718989882849,-6421.9,0.00024273,7]
[330086936,1718989882859,-2500.0,0.00024283,2]
[330086937,1718989882869,-5000.0,0.00024301,2]
[330086938,1718989882879,-1356.86,0.00024359,4]
[330086939,1718989882889,-3062.37,0.00024359,4]
[330086940,1718989882898,-1533.09,0.00024359,4]
[330086941,1718989882910,-5990.91,0.00024359,4]
[330086942,1718989882920,-1110.17,0.00024359,4]
[330086943,1718989882929,-11925.19,0.00024359,4]
[330086944,1718989882939,-3672.46,0.00024359,4]
[330086945,1718989882949,-6178.73,0.00024359,4]
[330086946,1718989882959,-1501.96,0.00024359,4]
[330086947,1718989882969,-500.0,0.00024359,4]
[330086948,1718989882979,-3518.52,0.00024359,4]
[330086949,1718989882989,-16602.73,0.00024359,4]
[330086950,1718989882999,-1989.12,0.00024371,4]
[330086951,1718989883009,-2398.6,0.00024371,4]
[330086952,1718989883020,-42723.34,0.00024371,4]
[330086953,1718989883029,-1860.96,0.00024371,4]
[330086954,1718989883039,-7757.24,0.00024371,4]
[330086955,1718989883048,-2969.44,0.00024371,4]
[330086956,1718989883058,-500.0,0.00024371,2]
[330086957,1718989883067,-2619.5,0.00024371,4]
[330086958,1718989883077,-4343.94,0.00024371,4]
[330086959,1718989883088,-946.76,0.00024371,4]
[330086960,1718989883103,-1067.33,0.00024371,4]
[330086961,1718989883114,-11069.13,0.00024371,4]
[330086962,1718989883125,-2041.56,0.00024371,4]
[330086963,1718989883135,-2855.93,0.00024371,4]
[330086964,1718989883146,-1902.36,0.00024371,4]
[330086965,1718989883158,-871.25,0.00024372,4]
[330086966,1718989883167,-2040.63,0.00024372,4]
[330086967,1718989883176,-1063.28,0.00024372,4]
[330086968,1718989883190,-2566.45,0.00024372,4]
[330086969,1718989883199,-1747.85,0.00024372,4]
[330086970,1718989883209,-574.66,0.00024372,4]
[330086971,1718989883218,-1705.93,0.00024372,4]
[330086972,1718989883227,-500.0,0.00024372,4]
[330086973,1718989883238,-500.0,0.00024372,4]
[330086974,1718989883247,-790.72,0.00024372,4]
[330086975,1718989883257,-500.0,0.00024372,4]
[330086976,1718989883266,-500.0,0.00024372,4]
[330086977,1718989883276,-614.11,0.00024372,4]
[330086978,1718989883286,-1508.15,0.00024372,4]
[330086979,1718989883295,-500.0,0.00024372,4]
[330086980,1718989883305,-655.33,0.00024372,4]
[330086981,1718989883315,-900.76,0.00024372,4]
[330086982,1718989883324,-1711.8,0.00024372,4]
[330086983,1718989883334,-500.0,0.00024372,4]
[330086984,1718989883344,-500.0,0.00024372,4]
[330086985,1718989883353,-1259.32,0.00024372,4]
[330086986,1718989883363,-543.58,0.00024372,4]
[330086987,1718989883372,-1395.51,0.00024372,4]
[330086988,1718989883382,-500.0,0.00024372,4]
[330086989,1718989883391,-779.08,0.00024372,4]
[330086990,1718989883401,-882.56,0.00024372,4]
[330086991,1718989883412,-1115.61,0.00024372,4]
[330086992,1718989883421,-334.72172059,0.00024372,4]
[330086993,1718989883430,-500.0,0.00024372,4]
[330086994,1718989883440,-500.0,0.00024372,4]
[330086995,1718989883450,-525.15273363,0.00024372,4]
[330086996,1718989883459,-500.0,0.00024372,4]
[330086997,1718989883469,-500.0,0.00024372,4]
[330086998,1718989883478,-500.0,0.00024372,4]
[330086999,1718989883487,-1759.77,0.00024372,4]
[330087000,1718989883497,-581.48,0.00024372,4]
[330087001,1718989883507,-500.0,0.00024372,4]
[330087002,1718989883516,-500.0,0.00024372,4]
[330087003,1718989883526,-500.0,0.00024372,4]
[330087004,1718989883535,-562.58,0.00024372,4]
[330087005,1718989883545,-500.0,0.00024372,4]
[330087006,1718989883555,-1118.22,0.00024372,4]
[330087007,1718989883564,-500.0,0.00024372,4]
[330087008,1718989883575,-1073.61,0.00024372,4]
[330087009,1718989883586,-500.0,0.00024372,4]
[330087010,1718989883596,-1028.37,0.00024372,4]
[330087011,1718989883606,-565.65,0.00024372,4]
[330087012,1718989883617,-1694.42,0.00024372,4]
[330087013,1718989883627,-500.0,0.00024372,4]
[330087014,1718989883636,-538.43,0.00024372,4]
[330087015,1718989883646,-251.64,0.00024372,4]
[330087016,1718989883656,-1124.0,0.00024372,4]
[330087017,1718989883668,-1310.65,0.00024372,4]
[330087018,1718989883677,-500.0,0.00024372,4]
[330087019,1718989883687,-500.0,0.00024372,4]
[330087020,1718989883698,-388.89,0.00024372,4]
[330087021,1718989883707,-154.84,0.00024372,4]
[330087022,1718989883717,-1974.58,0.00024372,4]
[330087023,1718989883727,-1560.47,0.00024372,4]
[330087024,1718989883736,-1456.87,0.00024372,4]
[330087025,1718989883746,-500.0,0.00024372,4]
[330087026,1718989883755,-500.0,0.00024372,4]
[330087027,1718989883764,-1350.6,0.00024372,4]
[330087028,1718989883774,-766.53,0.00024372,4]
[330087029,1718989883784,-500.0,0.00024372,4]
[330087030,1718989883794,-209.58,0.00024372,4]
[330087031,1718989883804,-500.0,0.00024372,4]
[330087032,1718989883814,-1549.35,0.00024372,4]
[330087033,1718989883824,-1457.49,0.00024372,4]
[330087034,1718989883833,-500.0,0.00024372,4]
[330087035,1718989883843,-1276.6,0.00024372,4]
[330087036,1718989883853,-607.75,0.00024372,4]
[330087037,1718989883863,-661.51,0.00024372,4]
[330087038,1718989883872,-616.1,0.00024372,4]
[330087039,1718989883882,-759.07,0.00024372,4]
[330087040,1718989883892,-1007.76,0.00024372,4]
[330087041,1718989883901,-558.75,0.00024372,4]
[330087042,1718989883915,-520.63,0.00024372,4]
[330087043,1718989883925,-500.0,0.00024372,4]
[330087044,1718989883934,-500.0,0.00024372,4]
[330087045,1718989883943,-500.0,0.00024372,4]
[330087046,1718989883951,-750.4,0.00024372,4]
[330087047,1718989883961,-500.0,0.00024372,4]
[330087048,1718989883970,-500.0,0.00024372,4]
[330087049,1718989883979,-500.0,0.00024372,4]
[330087050,1718989883988,-500.0,0.00024372,4]
[330087051,1718989883998,-674.53,0.00024372,4]
[330087052,1718989884009,-919.98,0.00024372,4]
[330087053,1718989884019,-1723.58,0.00024372,4]
[330087054,1718989884028,-619.87560275,0.00024372,4]
[330087055,1718989884038,-500.0,0.00024372,4]
[330087056,1718989884048,-500.0,0.00024372,4]
[330087057,1718989884057,-572.44,0.00024372,4]
[330087058,1718989884067,-966.63,0.00024372,4]
[330087059,1718989884077,-500.0,0.00024372,4]
[330087060,1718989884086,-500.0,0.00024372,4]
[330087061,1718989884100,-574.64,0.00024372,4]
[330087062,1718989884110,-500.0,0.00024372,4]
[330087063,1718989884120,-551.74,0.00024372,4]
[330087064,1718989884130,-500.0,0.00024372,4]
[330087065,1718989884140,-500.0,0.00024372,4]
[330087066,1718989884151,-853.88,0.00024372,4]
[330087067,1718989884164,-769.31,0.00024372,4]
[330087068,1718989884174,-500.0,0.00024372,4]
[330087069,1718989884184,-584.18,0.00024372,4]
[330087070,1718989884194,-754.91,0.00024372,4]
[330087071,1718989884204,-500.0,0.00024372,4]
[330087072,1718989884213,-500.0,0.00024372,4]
[330087073,1718989884223,-667.94,0.00024372,4]
[330087074,1718989884233,-920.79,0.00024372,4]
[330087075,1718989884243,-843.52,0.00024372,4]
[330087076,1718989884254,-2478.71,0.00024372,4]
[330087077,1718989884264,-1915.42,0.00024372,4]
[330087078,1718989884275,-878.77,0.00024372,4]
[330087079,1718989884285,-500.0,0.00024372,4]
[330087080,1718989884295,-1207.42,0.00024372,4]
[330087081,1718989884305,-500.0,0.00024372,4]
[330087082,1718989884314,-944.02,0.00024372,4]
[330087083,1718989884323,-1304.29,0.00024372,4]
[330087084,1718989884332,-500.0,0.00024372,4]
[330087085,1718989884342,-435.19175809,0.00024372,4]
[330087086,1718989884351,-729.79,0.00024372,4]
[330087087,1718989884360,-1256.24,0.00024372,4]
[330087088,1718989884370,-500.0,0.00024372,4]
[330087089,1718989884380,-1422.04,0.00024372,4]
[330087090,1718989884389,-656.57,0.00024372,4]
[330087091,1718989884399,-1852.92,0.00024372,4]
[330087092,1718989884411,-625.57,0.00024372,4]
[330087093,1718989884420,-500.0,0.00024372,4]
[330087094,1718989884431,-666.91,0.00024372,4]
[330087095,1718989884440,-1499.6,0.00024372,4]
[330087096,1718989884453,-765.5,0.00024372,4]
[330087097,1718989884462,-2424.04,0.00024372,4]
[330087098,1718989884472,-500.0,0.00024372,4]
[330087099,1718989884481,-4987.88,0.00024372,4]
[330087100,1718989884491,-2211.22,0.00024372,4]
[330087101,1718989884500,-915.87,0.00024372,4]
[330087102,1718989884511,-787.23,0.00024372,4]
[330087103,1718989884521,-637.63,0.00024372,4]
[330087104,1718989884530,-1221.9,0.00024372,4]
[330087105,1718989884539,-500.0,0.00024372,4]
[330087106,1718989884550,-1018.75,0.00024372,4]
[330087107,1718989884559,-501.59,0.00024372,4]
[330087108,1718989884569,-500.0,0.00024372,4]
[330087109,1718989884578,-500.0,0.00024372,4]
[330087110,1718989884588,-869.8,0.00024372,4]
[330087111,1718989884598,-500.0,0.00024372,8]
[330087112,1718989884607,-748.62,0.00024372,4]
[330087113,1718989884617,-2336.91,0.00024372,4]
[330087114,1718989884626,-1361.85,0.00024372,4]
[330087115,1718989884636,-1018.85,0.00024372,4]
[330087116,1718989884645,-16289.33,0.00024372,4]
[330087117,1718989884655,-500.0,0.00024372,4]
[330087118,1718989884668,-2349.59,0.00024372,4]
[330087119,1718989884677,-650.0,0.00024372,4]
[330087120,1718989884686,-500.0,0.00024372,4]
[330087121,1718989884696,-979.16,0.00024372,4]
[330087122,1718989884705,-772.03,0.00024372,4]
[330087123,1718989884715,-1085.42,0.00024372,4]
[330087124,1718989884725,-1856.06,0.00024372,4]
[330087125,1718989884736,-581.94,0.00024372,4]
[330087126,1718989884746,-1071.94,0.00024372,4]
[330087127,1718989884756,-500.0,0.00024372,4]
[330087128,1718989884766,-676.76,0.00024372,4]
[330087129,1718989884776,-1530.22,0.00024372,4]
[330087130,1718989884786,-500.0,0.00024372,4]
[330087131,1718989884796,-396.05,0.00024372,4]
[330087132,1718989884805,-500.0,0.00024372,4]
[330087133,1718989884815,-530.66,0.00024372,4]
[330087134,1718989884824,-500.0,0.00024372,4]
[330087135,1718989884834,-1352.93,0.00024372,4]
[330087136,1718989884843,-828.24,0.00024372,4]
[330087137,1718989884853,-1938.16,0.00024372,4]
[330087138,1718989884862,-758.24,0.00024372,4]
[330087139,1718989884872,-500.0,0.00024372,4]
[330087140,1718989884881,-500.0,0.00024372,4]
[330087141,1718989884891,-500.0,0.00024372,4]
[330087142,1718989884900,-500.0,0.00024372,4]
[330087143,1718989884913,-500.0,0.00024372,4]
[330087144,1718989884923,-556.62,0.00024372,4]
[330087145,1718989884932,-2348.18,0.00024372,4]
[330087146,1718989884941,-500.0,0.00024372,4]
[330087147,1718989884951,-2261.53,0.00024372,4]
[330087148,1718989884960,-500.0,0.00024372,4]
[330087149,1718989884970,-500.0,0.00024372,4]
[330087150,1718989884979,-325.6,0.00024372,4]
[330087151,1718989884989,-600.2,0.00024372,4]
[330087152,1718989884999,-500.0,0.00024372,4]
[330087153,1718989885009,-500.0,0.00024372,4]
[330087154,1718989885019,-344.28,0.00024372,4]
[330087155,1718989885028,-200.0,0.00024372,7]
[330087156,1718989885038,-1091.2,0.00024372,4]
[330087157,1718989885048,-500.0,0.00024372,4]
[330087158,1718989885058,-500.0,0.00024372,4]
[330087159,1718989885068,-1100.71,0.00024372,4]
[330087160,1718989885078,-12938.97,0.00024372,4]
[330087161,1718989885088,-1965.19,0.00024372,4]
[330087162,1718989885099,-638.92,0.00024372,4]
[330087163,1718989885112,-179.73138814,0.00024372,4]
[330087164,1718989885122,-635.23,0.00024372,4]
[330087165,1718989885132,-1762.14,0.00024372,4]
[330087166,1718989885143,-992.0,0.00024372,4]
[330087167,1718989885153,-1859.99,0.00024372,4]
[330087168,1718989885163,-500.0,0.00024372,4]
[330087169,1718989885171,-656.75,0.00024372,4]
[330087170,1718989885179,-2222.41,0.00024372,4]
[330087171,1718989885189,-860.86,0.00024372,4]
[330087172,1718989885270,-1049.63,0.00024372,4]
[330087173,1718989885280,-672.47,0.00024372,4]
[330087174,1718989885290,-500.0,0.00024372,4]
[330087175,1718989885299,-3375.56,0.00024372,4]
[330087176,1718989885308,-2480.67,0.00024372,4]
[330087177,1718989885318,-652.86,0.00024372,4]
[330087178,1718989885327,-500.0,0.00024372,4]
[330087179,1718989885337,-2569.55,0.00024372,4]
[330087180,1718989885346,-500.0,0.00024382,4]
[330087181,1718989885355,-1833.6,0.00024382,4]
[330087182,1718989885365,-1662.17,0.00024382,4]
[330087183,1718989885374,-1196.01,0.00024382,4]
[330087184,1718989885384,-1323.04,0.00024382,4]
[330087185,1718989885393,-1815.14,0.00024382,4]
[330087186,1718989885403,-1488.18,0.00024382,4]
[330087187,1718989885413,-657.08,0.00024382,4]
[330087188,1718989885423,-794.21,0.00024382,4]
[330087189,1718989885432,-2173.9,0.00024382,4]
[330087190,1718989885442,-1700.13,0.00024382,4]
[330087191,1718989885451,-703.12,0.00024382,4]
[330087192,1718989885461,-500.0,0.00024382,4]
[330087193,1718989885470,-500.0,0.00024382,4]
[330087194,1718989885480,-500.0,0.00024382,4]
[330087195,1718989885489,-1792.19,0.00024382,4]
[330087196,1718989885499,-645.07,0.00024382,4]
[330087197,1718989885509,-500.0,0.00024382,4]
[330087198,1718989885519,-500.0,0.00024382,4]
[330087199,1718989885529,-831.31,0.00024382,4]
[330087200,1718989885539,-1274.46,0.00024382,4]
[330087201,1718989885548,-500.0,0.00024382,4]
[330087202,1718989885558,-500.0,0.00024382,4]
[330087203,1718989885567,-1390.32,0.00024382,4]
[330087204,1718989885577,-2085.31,0.00024382,4]
[330087205,1718989885587,-2038.36,0.00024382,4]
[330087206,1718989885596,-500.0,0.00024382,4]
[330087207,1718989885605,-961.12,0.00024382,4]
[330087208,1718989885615,-875.07,0.00024382,4]
[330087209,1718989885625,-500.0,0.00024382,4]
[330087210,1718989885634,-727.93,0.00024382,4]
[330087211,1718989885644,-1432.85,0.00024382,4]
[330087212,1718989885655,-1981.72,0.00024382,4]
[330087213,1718989885666,-500.0,0.00024382,4]
[330087214,1718989885676,-1176.2,0.00024382,4]
[330087215,1718989885685,-500.0,0.00024382,4]
[330087216,1718989885694,-1836.11,0.00024382,4]
[330087217,1718989885704,-1666.62,0.00024382,4]
[330087218,1718989885714,-1088.29,0.00024382,4]
[330087219,1718989885723,-500.0,0.00024382,4]
[330087220,1718989885733,-500.0,0.00024382,4]
[330087221,1718989885742,-500.0,0.00024382,4]
[330087222,1718989885752,-1712.42,0.00024382,4]
[330087223,1718989885761,-864.04,0.00024382,4]
[330087224,1718989885771,-1441.44,0.00024382,4]
[330087225,1718989885780,-500.0,0.00024382,4]
[330087226,1718989885790,-664.38,0.00024382,4]
[330087227,1718989885801,-914.89,0.00024382,4]
[330087228,1718989885811,-1656.03,0.00024382,4]
[330087229,1718989885820,-2699.53,0.00024382,4]
[330087230,1718989885830,-1310.25,0.00024382,4]
[330087231,1718989885840,-4009.92,0.00024382,4]
[330087232,1718989885849,-1193.59,0.00024382,4]
[330087233,1718989885859,-500.0,0.00024383,3]
[330087234,1718989885869,-500.0,0.00024383,4]
[330087235,1718989885878,-500.0,0.00024383,4]
[330087236,1718989885888,-710.94,0.00024383,4]
[330087237,1718989885898,-500.0,0.00024383,4]
[330087238,1718989885908,-797.24,0.00024383,4]
[330087239,1718989885918,-617.5,0.00024383,4]
[330087240,1718989885927,-500.0,0.00024383,4]
[330087241,1718989885936,-586.56433518,0.00024383,4]
[330087242,1718989885946,-500.0,0.00024383,4]
[330087243,1718989885955,-798.04,0.00024383,4]
[330087244,1718989885964,-735.75,0.00024383,4]
[330087245,1718989885973,-500.0,0.00024383,4]
[330087246,1718989885982,-500.0,0.00024383,4]
[330087247,1718989885992,-500.0,0.00024383,4]
[330087248,1718989886001,-754.93,0.00024383,4]
[330087249,1718989886010,-595.79,0.00024383,4]
[330087250,1718989886019,-738.1,0.00024383,4]
[330087251,1718989886029,-1205.55,0.00024383,4]
[330087252,1718989886038,-500.0,0.00024383,2]
[330087253,1718989886047,-500.0,0.00024383,4]
[330087254,1718989886056,-522.35,0.00024383,4]
[330087255,1718989886066,-985.93,0.00024383,4]
[330087256,1718989886075,-500.0,0.00024383,4]
[330087257,1718989886084,-668.33,0.00024383,4]
[330087258,1718989886095,-548.21,0.00024383,4]
[330087259,1718989886109,-679.56,0.00024383,4]
[330087260,1718989886118,-500.0,0.00024383,4]
[330087261,1718989886128,-500.0,0.00024383,4]
[330087262,1718989886138,-500.0,0.00024383,4]
[330087263,1718989886148,-780.77,0.00024383,4]
[330087264,1718989886160,-582.75,0.00024383,4]
[330087265,1718989886169,-213.21635424,0.00024383,4]
[330087266,1718989886178,-500.0,0.00024383,4]
[330087267,1718989886190,-500.0,0.00024383,4]
[330087268,1718989886199,-584.71,0.00024383,4]
[330087269,1718989886209,-563.5,0.00024383,4]
[330087270,1718989886218,-1042.2,0.00024383,4]
[330087271,1718989886228,-500.0,0.00024383,4]
[330087272,1718989886237,-588.19,0.00024383,4]
[330087273,1718989886247,-687.44,0.00024383,4]
[330087274,1718989886256,-811.36,0.00024383,4]
[330087275,1718989886266,-717.66,0.00024383,4]
[330087276,1718989886275,-621.56,0.00024383,4]
[330087277,1718989886285,-531.24,0.00024383,4]
[330087278,1718989886295,-500.0,0.00024383,4]